bitfinex-derivatives/quotes_SOLF0:USTF0_20250109
["timestamp","ask_amount","ask_price","bid_price","bid_amount"]
[1736457988108,2.6849,186.25,186.21,2.6854]
[1736457988307,1.6195,186.31,186.22,2.6852]
[1736457988714,2.6848,186.26,186.22,2.6852]
[1736457989310,1.6195,186.31,186.21,19.81417084]
[1736457989608,3.2199,186.32,186.21,19.81417084]
[1736457989807,2.6841,186.3,186.27,2.6845]
[1736457990208,3.2199,186.32,186.24,19.81417084]
[1736457990409,1.6467,186.32,186.24,19.81417084]
[1736457990609,1.6467,186.32,186.18,5.36]
[1736457990908,1.6467,186.32,186.2,19.81417084]
[1736457991109,2.6843,186.29,186.25,2.6848]
[1736457991913,1.6467,186.32,186.23,19.81417084]
[1736457992612,4.3306,186.32,186.28,2.6844]
[1736457993612,2.6839,186.32,186.28,2.6844]
[1736457994016,3.1503,186.37,186.28,2.6844]
[1736457994215,3.1503,186.37,186.25,2.6848]
[1736457994720,2.6844,186.29,186.25,2.6848]
[1736457994921,3.1503,186.37,186.25,2.6848]
[1736457995118,2.6836,186.34,186.25,2.6848]
[1736457995319,3.1503,186.37,186.25,2.6848]
[1736457995517,3.1503,186.37,186.23,2.6851]
[1736457995716,19.81417084,186.36,186.2,19.81417084]
[1736457996316,19.81417084,186.33,186.17,25.55871993]
[1736457996524,1.5229,186.32,186.17,25.55871993]
[1736457996718,2.6846,186.27,186.17,25.55871993]
[1736457997017,5.36,186.31,186.2,19.81417084]
[1736457997216,2.6843,186.29,186.24,2.685]
[1736457997414,17.81178345,186.36,186.24,12.45178345]
[1736457997808,1.5885,186.35,186.24,12.45178345]
[1736457998012,2.6843,186.3,186.25,2.6848]
[1736457998419,1.5885,186.35,186.21,12.45178345]
[1736457998717,2.6845,186.28,186.21,12.45178345]
[1736458000115,2.6845,186.28,186.24,2.685]
[1736458000313,1.5885,186.35,186.21,12.45178345]
[1736458000519,2.6843,186.29,186.24,12.45178345]
[1736458001218,1.5885,186.35,186.24,12.45178345]
[1736458001419,12.45178345,186.32,186.21,12.45178345]
[1736458001622,12.45178345,186.32,186.21,15.13718345]
[1736458001821,12.45178345,186.32,186.21,12.45178345]
[1736458002118,14.04028345,186.35,186.24,2.6849]
[1736458002622,2.6844,186.28,186.25,2.6848]
[1736458002816,2.6844,186.28,186.21,12.45178345]
[1736458003315,2.6844,186.28,186.24,2.6849]
[1736458004415,2.6842,186.3,186.27,2.6845]
[1736458004615,1.5885,186.35,186.24,12.45178345]
[1736458005318,2.6843,186.3,186.26,2.6847]
[1736458005523,1.5885,186.35,186.26,2.6847]
[1736458005820,12.45178345,186.33,186.21,12.45178345]
[1736458006816,2.685,186.25,186.21,15.13708345]
[1736458008020,12.45178345,186.33,186.22,2.6852]
[1736458008021,2.6848,186.26,186.22,2.6852]
[1736458008218,2.6848,186.26,186.21,12.45178345]
[1736458009023,12.45178345,186.33,186.21,12.45178345]
[1736458009223,2.6845,186.28,186.24,2.685]
[1736458009522,2.6845,186.28,186.21,12.45178345]
[1736458011226,12.45178345,186.33,186.21,12.45178345]
[1736458011426,2.6843,186.29,186.25,2.6848]
[1736458011624,1.5885,186.35,186.24,12.45178345]
[1736458011826,2.6842,186.3,186.27,2.6846]
[1736458012128,1.5885,186.35,186.24,12.45178345]
[1736458012331,1.4961,186.36,186.27,12.45178345]
[1736458012826,1.6307,186.41,186.3,12.45178345]
[1736458013033,4.7857,186.41,186.3,12.45178345]
[1736458013625,4.7857,186.41,186.22,5.36]
[1736458013824,4.7857,186.41,186.3,12.45178345]
[1736458014231,2.6834,186.36,186.31,2.6839]
[1736458014628,4.7857,186.41,186.31,2.6839]
[1736458014930,2.6837,186.33,186.27,12.45178345]
[1736458016323,2.684,186.31,186.27,12.45178345]
[1736458016526,5.34,186.35,186.24,12.45178345]
[1736458017731,2.6841,186.31,186.26,2.6846]
[1736458018127,2.6841,186.31,186.24,12.45178345]
[1736458018330,2.6843,186.3,186.26,2.6846]
[1736458019028,2.6842,186.3,186.24,12.45178345]
[1736458019722,2.6842,186.3,186.26,2.6846]
[1736458019920,2.684,186.31,186.24,12.45178345]
[1736458020123,5.34,186.35,186.24,12.45178345]
[1736458020326,5.34,186.35,186.28,2.6843]
[1736458020928,2.684,186.32,186.24,12.45178345]
[1736458021130,12.45178345,186.39,186.27,12.45178345]
[1736458021630,2.6833,186.36,186.32,2.6838]
[1736458022031,4.7857,186.41,186.33,12.45178345]
[1736458022233,3.155,186.41,186.33,12.45178345]
[1736458022434,5.34,186.44,186.33,12.45178345]
[1736458022624,23.12709079,186.48,186.36,12.45178345]
[1736458022625,2.6823,186.43,186.36,12.45178345]
[1736458022823,5.34,186.46,186.36,12.45178345]
[1736458023031,2.6825,186.42,186.37,2.683]
[1736458023225,5.34,186.46,186.36,12.45178345]
[1736458024031,2.6823,186.43,186.38,2.6829]
[1736458025132,2.6823,186.43,186.38,2.683]
[1736458025328,2.6818,186.47,186.42,12.45178345]
[1736458025530,12.45178345,186.55,186.42,12.45178345]
[1736458025737,15.60158345,186.55,186.42,12.45178345]
[1736458026032,2.6813,186.5,186.42,12.45178345]
[1736458026434,2.6813,186.5,186.44,2.682]
[1736458026737,15.60158345,186.55,186.44,2.682]
[1736458027234,12.45178345,186.52,186.43,2.6822]
[1736458028027,3.1498,186.55,186.47,12.45178345]
[1736458028227,3.1498,186.55,186.49,2.6813]
[1736458028635,2.6808,186.54,186.49,2.6813]
[1736458028842,3.1498,186.55,186.47,12.45178345]
[1736458029135,1.565,186.55,186.47,12.45178345]
[1736458029338,1.5697,186.58,186.45,19.87311952]
[1736458029839,21.44281952,186.58,186.45,19.87311952]
[1736458030033,21.44281952,186.58,186.47,2.6817]
[1736458030738,2.6809,186.53,186.47,2.6817]
[1736458030935,2.6809,186.53,186.48,2.6814]
[1736458031633,21.44281952,186.58,186.46,2.6817]
[1736458031935,21.44281952,186.58,186.43,5.34]
[1736458032430,21.44281952,186.58,186.42,19.87311952]
[1736458033334,19.87311952,186.55,186.39,19.87311952]
[1736458033535,19.87311952,186.52,186.36,19.87311952]
[1736458033740,3.172,186.51,186.36,19.87311952]
[1736458034135,2.6818,186.46,186.4,2.6826]
[1736458034740,2.6818,186.46,186.41,2.6825]
[1736458036134,2.682,186.45,186.36,19.87311952]
[1736458036335,1.5401,186.5,186.39,2.6827]
[1736458037134,19.87311952,186.49,186.37,2.6831]
[1736458037341,19.87311952,186.49,186.33,19.87311952]
[1736458037537,1.5401,186.5,186.3,19.87311952]
[1736458037538,2.683,186.39,186.3,19.87311952]
[1736458038440,1.5927,186.43,186.3,19.87311952]
[1736458038636,3.1974,186.43,186.3,19.87311952]
[1736458038833,1.6433,186.42,186.31,2.684]
[1736458039144,1.6433,186.42,186.3,19.87311952]
[1736458039344,1.6433,186.42,186.32,2.6838]
[1736458040144,2.6832,186.37,186.32,2.6838]
[1736458040739,2.6833,186.36,186.3,19.87311952]
[1736458040944,1.6433,186.42,186.21,19.87311952]
[1736458040945,1.6433,186.42,186.27,19.87311952]
[1736458041343,2.6834,186.36,186.31,2.6839]
[1736458041649,1.6433,186.42,186.31,2.6839]
[1736458041948,2.6835,186.35,186.27,19.87311952]
[1736458042248,1.6433,186.42,186.29,2.6842]
[1736458042848,2.6837,186.34,186.29,2.6842]
[1736458046354,1.6433,186.42,186.29,2.6842]
[1736458046545,2.6837,186.33,186.29,2.6842]
[1736458047754,1.6433,186.42,186.27,19.87311952]
[1736458048256,2.6833,186.36,186.27,19.87311952]
[1736458048753,1.6433,186.42,186.27,19.87311952]
[1736458048957,2.6835,186.35,186.3,2.684]
[1736458049155,1.6433,186.42,186.27,19.87311952]
[1736458049458,2.6834,186.36,186.31,2.6839]
[1736458050159,2.6834,186.35,186.31,2.6839]
[1736458051959,12.44293893,186.39,186.27,12.44293893]
[1736458052453,2.6838,186.33,186.28,2.6843]
[1736458052659,12.44293893,186.39,186.28,2.6843]
[1736458053059,2.6838,186.33,186.28,2.6843]
[1736458054157,2.6838,186.32,186.28,2.6843]
[1736458054857,2.6843,186.29,186.25,2.6848]
[1736458055057,13.94163893,186.36,186.21,12.44293893]
[1736458055254,2.6846,186.27,186.23,54.73875695]
[1736458055449,2.6846,186.27,186.23,52.05365695]
[1736458055654,2.6839,186.32,186.28,2.6843]
[1736458055958,13.94203893,186.38,186.27,12.44293893]
[1736458056152,2.6839,186.32,186.28,2.6844]
[1736458056353,13.94203893,186.38,186.28,2.6844]
[1736458056959,2.6841,186.31,186.28,2.6844]
[1736458057155,13.94203893,186.38,186.27,12.44293893]
[1736458057352,12.44293893,186.35,186.24,12.44293893]
[1736458057655,12.44293893,186.35,186.24,15.12793893]
[1736458057861,12.44293893,186.32,186.21,12.44293893]
[1736458058056,3.1283,186.31,186.21,12.44293893]
[1736458058454,1.6308,186.3,186.21,12.44293893]
[1736458059655,2.6845,186.28,186.24,2.6849]
[1736458060053,1.6308,186.3,186.21,12.44293893]
[1736458060654,1.6308,186.3,186.23,2.685]
[1736458060655,2.6846,186.27,186.23,2.685]
[1736458063159,2.6846,186.27,186.24,2.685]
[1736458064860,1.6308,186.3,186.22,2.6853]
[1736458065759,2.6848,186.26,186.22,2.6853]
[1736458066965,2.6849,186.25,186.22,2.6853]
[1736458067154,1.6308,186.3,186.18,12.44293893]
[1736458067155,12.44293893,186.29,186.18,12.44293893]
[1736458067562,2.6849,186.25,186.19,2.6857]
[1736458067761,12.44293893,186.29,186.15,12.44293893]
[1736458068162,2.6853,186.22,186.19,2.6857]
[1736458068357,2.6853,186.22,186.15,12.44293893]
[1736458069254,12.44293893,186.29,186.15,12.44293893]
[1736458069458,1.6308,186.3,186.18,12.44293893]
[1736458071167,2.6849,186.26,186.18,12.44293893]
[1736458072068,2.6849,186.26,186.22,2.6853]
[1736458078666,1.6308,186.3,186.21,2.6854]
[1736458078867,12.44293893,186.29,186.21,2.6854]
[1736458079065,12.44293893,186.29,186.18,12.44293893]
[1736458079266,12.44293893,186.29,186.15,12.44293893]
[1736458079670,2.6853,186.23,186.19,2.6857]
[1736458080772,2.6849,186.25,186.18,12.44293893]
[1736458081867,2.6849,186.25,186.21,2.6854]
[1736458082067,12.44293893,186.29,186.18,12.44293893]
[1736458082271,2.6848,186.26,186.18,12.44293893]
[1736458082873,2.6848,186.26,186.22,2.6852]
[1736458083275,12.44293893,186.29,186.22,2.6852]
[1736458083473,2.6849,186.25,186.22,2.6852]
[1736458084668,12.44293893,186.29,186.18,12.44293893]
[1736458085373,2.6853,186.23,186.19,10.66074094]
[1736458085873,7.97504094,186.26,186.19,7.97504094]
[1736458086272,7.97504094,186.26,186.14,5.34]
[1736458086273,7.97504094,186.22,186.1,5.74688977]
[1736458086470,7.97504094,186.22,186.15,7.97504094]
[1736458086671,7.97504094,186.2,186.14,7.97504094]
[1736458087074,2.6859,186.18,186.14,10.66154094]
[1736458087678,7.97504094,186.2,186.1,12.95132512]
[1736458087873,2.6864,186.15,186.11,7.97504094]
[1736458088478,7.97504094,186.2,186.13,7.97504094]
[1736458088669,3.1094,186.21,186.15,7.97504094]
[1736458089068,3.1094,186.21,186.17,7.97504094]
[1736458089268,3.1094,186.21,186.17,2.6859]
[1736458089874,5.7949,186.21,186.17,2.6859]
[1736458091277,2.6853,186.22,186.18,2.6859]
[1736458092679,5.34,186.26,186.18,2.6859]
[1736458092879,2.6855,186.21,186.17,2.686]
[1736458097177,5.34,186.26,186.12,5.34]
[1736458097385,2.6861,186.17,186.13,2.6866]
[1736458097580,12.46436142,186.21,186.13,2.6866]
[1736458097885,3.1186,186.2,186.13,2.6866]
[1736458098183,2.6862,186.17,186.13,2.6866]
[1736458099182,3.1186,186.2,186.12,12.46436142]
[1736458100080,5.8042,186.2,186.16,2.6861]
[1736458100786,1.4932,186.24,186.15,12.46436142]
[1736458101483,14.36344376,186.28,186.18,12.46436142]
[1736458101682,9.04344376,186.28,186.18,12.46436142]
[1736458101879,2.6848,186.26,186.22,2.6852]
[1736458102280,3.1167,186.29,186.21,12.46436142]
[1736458102483,2.6846,186.27,186.23,2.6851]
[1736458102977,3.1167,186.29,186.23,2.6851]
[1736458103183,2.6848,186.26,186.23,2.6851]
[1736458103486,2.6848,186.26,186.21,12.46436142]
[1736458103687,2.6848,186.26,186.22,2.6853]
[1736458107286,12.46436142,186.27,186.15,12.46436142]
[1736458107977,2.6856,186.21,186.17,2.686]
[1736458108584,2.6857,186.2,186.15,2.6862]
[1736458108787,12.46436142,186.24,186.15,2.6862]
[1736458109189,2.6859,186.19,186.15,2.6862]
[1736458109386,12.46436142,186.24,186.14,2.6865]
[1736458109586,12.46436142,186.24,186.09,12.46436142]
[1736458109787,1.562,186.23,186.09,12.46436142]
[1736458109991,2.6861,186.17,186.09,12.46436142]
[1736458111188,2.6861,186.17,186.14,2.6865]
[1736458111390,2.6856,186.21,186.14,2.6865]
[1736458111592,1.562,186.23,186.14,2.6865]
[1736458112590,2.6859,186.18,186.14,2.6865]
[1736458114192,2.6859,186.18,186.12,12.46436142]
[1736458114193,1.562,186.23,186.12,12.46436142]
[1736458114501,2.6863,186.15,186.08,12.46436142]
[1736458114688,12.46436142,186.21,186.08,12.46436142]
[1736458114893,3.095,186.2,186.08,12.46436142]
[1736458115995,12.46436142,186.18,186.05,12.46436142]
[1736458116393,2.6867,186.13,186.08,2.6872]
[1736458116590,2.6867,186.13,186.05,12.46436142]
[1736458116792,5.32,186.19,186.08,12.46436142]
[1736458117091,5.32,186.19,186.1,2.687]
[1736458117692,5.32,186.19,186.08,12.46436142]
[1736458118499,2.6867,186.13,186.09,2.6872]
[1736458119187,2.6864,186.15,186.11,2.6869]
[1736458119394,2.6864,186.15,186.11,10.66866817]
[1736458120196,7.98176817,186.18,186.11,7.98176817]
[1736458120393,2.6862,186.16,186.11,7.98176817]
[1736458120597,2.6862,186.16,186.13,7.98176817]
[1736458122389,7.98176817,186.18,186.12,2.6867]
[1736458122597,7.98176817,186.18,186.11,10.66866817]
[1736458122993,7.98176817,186.18,186.11,2.6869]
[1736458123190,3.095,186.2,186.04,5.32]
[1736458123191,7.98176817,186.16,186.09,7.98176817]
[1736458123393,7.98176817,186.16,186.11,7.98176817]
[1736458123595,2.6866,186.14,186.11,7.98176817]
[1736458123995,7.98176817,186.16,186.11,7.98176817]
[1736458124295,7.98176817,186.14,186.07,7.98176817]
[1736458124495,7.98176817,186.12,186.07,7.98176817]
[1736458124898,2.6873,186.09,186.07,7.98176817]
[1736458126197,1.4936,186.15,186.07,7.98176817]
[1736458126387,1.4936,186.15,186.09,7.98176817]
[1736458127498,3.095,186.2,186.11,7.98176817]
[1736458127702,7.98176817,186.18,186.11,7.98176817]
[1736458128097,2.6866,186.13,186.11,7.98176817]
[1736458128593,2.6864,186.15,186.11,10.66856817]
[1736458128798,2.6864,186.15,186.11,7.98176817]
[1736458130001,2.6864,186.15,186.12,2.6868]
[1736458131600,2.6864,186.15,186.11,10.66856817]
[1736458132204,7.98176817,186.18,186.11,10.66856817]
[1736458132405,2.6865,186.14,186.11,10.66856817]
[1736458134708,2.6867,186.13,186.1,2.687]
[1736458134906,2.6867,186.13,186.11,7.98176817]
[1736458135408,7.98176817,186.18,186.11,7.98176817]
[1736458135607,2.6865,186.14,186.11,7.98176817]
[1736458137411,2.6865,186.14,186.11,10.66856817]
[1736458137811,11.07676817,186.2,186.13,7.98176817]
[1736458138019,11.07676817,186.2,186.14,2.6865]
[1736458138212,11.07676817,186.2,186.13,7.98176817]
[1736458138412,2.6861,186.17,186.13,7.98176817]
[1736458138617,2.6861,186.17,186.13,10.66836817]
[1736458139115,2.6859,186.18,186.15,10.66806817]
[1736458139919,1.6317,186.22,186.17,7.98176817]
[1736458140114,7.98176817,186.26,186.2,7.98176817]
[1736458140521,2.6851,186.24,186.2,10.66726817]
[1736458140924,4.5885,186.28,186.22,7.98176817]
[1736458141413,2.6849,186.25,186.22,7.98176817]
[1736458142715,2.6847,186.27,186.22,7.98176817]
[1736458142918,4.5885,186.28,186.22,7.98176817]
[1736458144320,2.685,186.25,186.22,7.98176817]
[1736458145025,2.685,186.24,186.21,2.6854]
[1736458146925,2.6849,186.25,186.22,7.98176817]
[1736458147125,3.0978,186.28,186.23,2.6852]
[1736458147324,1.5241,186.28,186.24,7.98176817]
[1736458147524,7.98176817,186.32,186.24,7.98176817]
[1736458147823,7.98176817,186.32,186.25,2.6849]
[1736458148225,7.98176817,186.32,186.26,7.98176817]
[1736458148425,2.6844,186.29,186.26,7.98176817]
[1736458148720,7.98176817,186.28,186.12,5.74644895]
[1736458148920,2.6851,186.24,186.2,10.66726817]
[1736458149821,2.6849,186.25,186.22,2.6853]
[1736458150019,7.98176817,186.3,186.24,7.98176817]
[1736458150531,2.6845,186.28,186.24,10.66676817]
[1736458152224,2.6845,186.28,186.24,2.685]
[1736458152431,7.98176817,186.28,186.22,7.98176817]
[1736458152631,7.98176817,186.29,186.22,7.98176817]
[1736458153130,7.98176817,186.31,186.24,7.98176817]
[1736458154632,2.6846,186.28,186.24,10.66666817]
[1736458156331,2.6846,186.28,186.24,7.98176817]
[1736458156533,2.6846,186.28,186.25,2.6849]
[1736458157136,2.6846,186.28,186.24,10.66676817]
[1736458158036,7.98176817,186.27,186.2,7.98176817]
[1736458159132,2.6854,186.22,186.18,7.98176817]
[1736458159635,2.6854,186.22,186.18,10.66766817]
[1736458160030,2.6855,186.21,186.12,11.04644895]
[1736458160235,2.6855,186.21,186.17,10.66766817]
[1736458160433,7.98176817,186.21,186.15,7.98176817]
[1736458160638,7.98176817,186.19,186.13,7.98176817]
[1736458161136,7.98176817,186.17,186.12,5.74644895]
[1736458161537,7.98176817,186.17,186.12,13.72821712]
[1736458161746,2.6862,186.16,186.12,13.72821712]
[1736458163333,2.6862,186.16,186.12,16.41501712]
[1736458167840,2.6865,186.15,186.06,83.82]
[1736458168034,2.6865,186.15,186.11,7.98176817]
[1736458168242,7.98176817,186.19,186.13,7.98176817]
[1736458168636,2.6862,186.16,186.11,7.98176817]
[1736458169536,2.6862,186.16,186.12,2.6866]
[1736458169839,2.6861,186.17,186.13,7.98176817]
[1736458170540,2.6862,186.16,186.13,10.66836817]
[1736458171043,2.6862,186.16,186.13,7.98176817]
[1736458171541,2.6861,186.17,186.13,7.98176817]
[1736458171741,2.6861,186.17,186.13,10.66836817]
[1736458171934,7.98176817,186.19,186.13,10.66836817]
[1736458174140,2.6862,186.16,186.13,10.66836817]
[1736458175838,7.98176817,186.19,186.13,10.66836817]
[1736458176041,3.1769,186.24,186.15,7.98176817]
[1736458176244,7.98176817,186.23,186.17,7.98176817]
[1736458176441,2.6857,186.2,186.17,7.98176817]
[1736458176744,9.59226817,186.23,186.16,2.6861]
[1736458178143,2.6858,186.19,186.16,2.6861]
[1736458178339,3.1769,186.24,186.21,2.6854]
[1736458178645,2.6848,186.26,186.22,7.98176817]
[1736458178843,12.80046817,186.3,186.22,7.98176817]
[1736458179039,12.80046817,186.3,186.22,10.66706817]
[1736458179241,2.6847,186.27,186.22,10.66706817]
[1736458179441,12.80046817,186.3,186.22,10.66706817]
[1736458179637,7.98176817,186.28,186.22,10.66706817]
[1736458181249,2.6848,186.26,186.22,10.66706817]
[1736458187156,2.6852,186.23,186.2,7.98176817]
[1736458187356,7.98176817,186.24,186.18,7.98176817]
[1736458188652,7.98176817,186.22,186.07,28.81774141]
[1736458188867,4.8187,186.3,186.15,7.98176817]
[1736458188868,7.98176817,186.2,186.15,7.98176817]
[1736458189050,7.98176817,186.2,186.13,7.98176817]
[1736458190157,2.6859,186.18,186.14,2.6864]
[1736458200161,2.6861,186.17,186.14,2.6864]
[1736458200365,7.98176817,186.18,186.04,7.20443535]
[1736458200563,7.98176817,186.16,186.05,5.3]
[1736458200861,2.6866,186.13,186.1,2.687]
[1736458202258,2.6869,186.11,186.09,7.98176817]
[1736458202461,7.98176817,186.12,186.0,7.20443535]
[1736458202768,7.98176817,186.12,186.04,7.98176817]
[1736458202969,7.98176817,186.1,186.03,7.98176817]
[1736458205264,7.98176817,186.06,185.99,75.58332847]
[1736458205563,7.98176817,186.04,185.98,5.75071559]
[1736458205768,7.98176817,186.0,185.94,7.98176817]
[1736458205968,7.98176817,185.96,185.93,7.20443535]
[1736458206360,2.6892,185.95,185.93,7.20443535]
[1736458206567,7.98176817,185.96,185.89,17.87630352]
[1736458207272,12.50168831,185.98,185.89,9.89453535]
[1736458207569,12.50168831,185.95,185.89,7.20443535]
[1736458207767,3.0051,185.94,185.89,7.20443535]
[1736458207970,3.0051,185.94,185.83,12.50168831]
[1736458208170,3.0051,185.94,185.86,12.50168831]
[1736458208373,2.6897,185.92,185.86,15.19208831]
[1736458208772,3.0051,185.94,185.83,12.50168831]
[1736458208972,3.0051,185.94,185.84,2.6908]
[1736458209771,3.0051,185.94,185.83,15.19258831]
[1736458210173,3.0051,185.94,185.85,2.6905]
[1736458210374,3.0051,185.94,185.86,12.50168831]
[1736458210574,3.0051,185.94,185.77,5.3]
[1736458210766,1.5116,185.94,185.87,12.50168831]
[1736458210971,6.8121,185.97,185.87,12.50168831]
[1736458211273,6.8121,185.97,185.88,2.6902]
[1736458211679,8.4565,185.97,185.87,12.50168831]
[1736458211972,2.6894,185.94,185.88,2.6901]
[1736458212780,2.6895,185.93,185.87,15.19208831]
[1736458212981,10.0305,185.97,185.84,12.50168831]
[1736458213581,10.0305,185.97,185.86,2.6904]
[1736458214381,2.6898,185.92,185.86,2.6904]
[1736458214579,2.6898,185.92,185.87,2.6903]
[1736458214778,4.7305,185.97,185.88,12.50168831]
[1736458214982,5.8454,185.97,185.88,12.50168831]
[1736458215175,3.1565,185.97,185.88,15.19188831]
[1736458215376,3.1565,185.97,185.85,12.50168831]
[1736458215572,2.6898,185.91,185.85,12.50168831]
[1736458215882,2.6898,185.91,185.85,15.19218831]
[1736458216576,12.50168831,185.95,185.85,12.50168831]
[1736458216782,2.6897,185.92,185.87,2.6903]
[1736458217184,12.50168831,185.95,185.85,12.50168831]
[1736458217383,2.6898,185.91,185.86,2.6905]
[1736458218388,12.50168831,185.95,185.82,12.50168831]
[1736458218584,12.50168831,185.92,185.82,12.50168831]
[1736458218790,12.50168831,185.92,185.79,12.50168831]
[1736458219589,2.6903,185.88,185.83,2.6908]
[1736458219785,12.50168831,185.92,185.82,12.50168831]
[1736458220389,12.50168831,185.95,185.84,2.6907]
[1736458220687,12.50168831,185.95,185.82,12.50168831]
[1736458220983,1.6142,185.96,185.85,12.50168831]
[1736458221688,2.6896,185.93,185.85,12.50168831]
[1736458221887,1.6142,185.96,185.85,12.50168831]
[1736458222484,2.6896,185.93,185.88,2.6901]
[1736458222690,12.50168831,185.95,185.82,12.50168831]
[1736458222882,1.6142,185.96,185.82,12.50168831]
[1736458222883,12.50168831,185.92,185.82,12.50168831]
[1736458223082,2.6904,185.88,185.83,2.6909]
[1736458223486,5.3,185.91,185.83,2.6909]
[1736458223688,2.6905,185.86,185.79,12.50168831]
[1736458223889,5.3,185.91,185.79,12.50168831]
[1736458225792,5.3,185.91,185.82,2.691]
[1736458226286,5.3,185.91,185.79,12.50168831]
[1736458226594,5.3,185.94,185.82,12.50168831]
[1736458226985,2.6899,185.91,185.85,2.6906]
[1736458227191,5.3,185.95,185.85,12.50168831]
[1736458227591,2.6894,185.94,185.9,2.6899]
[1736458227793,1.6142,185.96,185.88,12.50168831]
[1736458228192,2.6895,185.93,185.9,2.6899]
[1736458228492,1.6142,185.96,185.88,12.50168831]
[1736458228894,2.6895,185.94,185.9,2.6898]
[1736458229794,3.1565,185.97,185.88,15.19178831]
[1736458230098,12.50168831,185.95,185.85,12.50168831]
[1736458230394,12.50168831,185.95,185.82,12.50168831]
[1736458230891,12.50168831,185.92,185.76,0.21812]
[1736458231097,1.5741,185.91,185.78,12.50168831]
[1736458231298,6.8741,185.91,185.78,12.50168831]
[1736458231497,2.6909,185.84,185.8,2.6914]
[1736458232394,6.8741,185.91,185.8,2.6914]
[1736458232694,2.6907,185.85,185.8,2.6914]
[1736458233391,2.6908,185.84,185.8,2.6914]
[1736458234397,2.6908,185.84,185.79,12.50168831]
[1736458234596,12.50168831,185.89,185.78,2.6916]
[1736458234786,3.1343,185.88,185.78,2.6916]
[1736458235293,2.6911,185.83,185.78,2.6916]
[1736458235487,12.50168831,185.86,185.76,12.50168831]
[1736458235691,12.50168831,185.86,185.75,2.692]
[1736458235692,2.6915,185.8,185.75,2.692]
[1736458235892,12.50168831,185.86,185.75,2.692]
[1736458236293,12.50168831,185.83,185.73,28.81774141]
[1736458236495,12.50168831,185.8,185.73,28.81774141]
[1736458236893,2.6919,185.77,185.73,28.81774141]
[1736458237199,12.50168831,185.8,185.71,7.20443535]
[1736458237509,2.6923,185.74,185.71,7.20443535]
[1736458237993,3.1533,185.79,185.71,7.20443535]
[1736458238198,3.1533,185.79,185.7,21.85316606]
[1736458238199,12.50168831,185.74,185.7,0.23986]
[1736458238994,2.6926,185.71,185.7,0.23986]
[1736458239195,12.50168831,185.74,185.7,0.23986]
[1736458241094,2.6926,185.71,185.7,0.23986]
[1736458241291,2.6926,185.71,185.62,146.94387715]
[1736458241488,1.5694,185.73,185.62,146.94387715]
[1736458242098,1.5694,185.73,185.62,118.12613574]
[1736458243300,4.2617,185.73,185.64,12.50168831]
[1736458243994,12.50168831,185.76,185.64,12.50168831]
[1736458244193,15.65498831,185.79,185.67,12.50168831]
[1736458244595,15.65498831,185.79,185.7,2.6926]
[1736458245004,2.6921,185.75,185.67,12.50168831]
[1736458245204,15.65498831,185.79,185.68,2.6929]
[1736458245701,2.6923,185.73,185.64,46.61942972]
[1736458245999,12.50168831,185.76,185.67,2.6931]
[1736458246203,2.6927,185.7,185.64,7.20443535]
[1736458246399,12.50168831,185.73,185.65,2.6932]
[1736458246603,12.50168831,185.73,185.62,118.12613574]
[1736458246807,12.50168831,185.76,185.64,12.50168831]
[1736458247297,2.6922,185.73,185.64,12.50168831]
[1736458247604,12.50168831,185.76,185.67,12.50168831]
[1736458248004,2.6921,185.75,185.7,2.6925]
[1736458248204,12.50168831,185.76,185.67,12.50168831]
[1736458249104,12.50168831,185.76,185.64,12.50168831]
[1736458250203,12.50168831,185.76,185.67,2.6931]
[1736458250905,2.6925,185.72,185.67,2.6931]
[1736458251105,12.50168831,185.76,185.67,2.6931]
[1736458252003,12.50168831,185.76,185.64,12.50168831]
[1736458252206,15.65498831,185.79,185.67,12.50168831]
[1736458252599,2.692,185.75,185.69,2.6927]
[1736458252795,15.65498831,185.79,185.67,12.50168831]
[1736458253407,15.65498831,185.79,185.7,2.6925]
[1736458253607,15.19358831,185.76,185.64,12.50168831]
[1736458253809,12.50168831,185.76,185.67,2.693]
[1736458254108,12.50168831,185.76,185.64,12.50168831]